[Event "SWE-ch Blitz 2019"]
[Site "Eskilstuna"]
[Date "2019.07.11"]
[Round "1.1"]
[White "Tikkanen, Hans"]
[Black "Wiklund, Johan"]
[Result "1-0"]
[ECO "E14"]
[WhiteElo "2503"]
[BlackElo "1924"]
[Annotator "ChessBase"]
[PlyCount "75"]
[EventDate "2019.07.06"]
[EventType "swiss"]
[EventCountry "SWE"]
[SourceTitle "playchess.com"]
[Source "ChessBase"]
[SourceQuality "1"]
[TimeControl "180+2"]

1. d4 {[%emt 0:00:00]} Nf6 {[%emt 0:00:00]} 2. Nf3 {[%emt 0:00:00]} e6 {[%emt 0:00:01]} 3. e3 {[%emt 0:00:03]} b6 {[%emt 0:00:04]} 4. Bd3 {[%emt 0:00:01]} Bb7 {[%emt 0:00:02]} 5. O-O {[%emt 0:00:03]} Be7 {[%emt 0:00:03]} 6. c4 {[%emt 0:00:01]} O-O {[%emt 0:00:08]} 7. Nc3 {[%emt 0:00:01]} d6 {[%emt 0:00:09]} 8. e4 {[%emt 0:00:20]} Nbd7 {[%emt 0:00:13]} 9. Qe2 {[%emt 0:00:08]} e5 {[%emt 0:00:04]} 10. d5 {[%emt 0:00:02]} a5 {[%emt 0:00:11]} 11. Be3 {[%emt 0:00:22]} Re8 {[%emt 0:00:11]} 12. a3 {[%emt 0:00:04]} Nf8 {[%emt 0:00:09]} 13. b4 {[%emt 0:00:05]} axb4 {[%emt 0:00:01]} 14. axb4 {[%emt 0:00:01]} Qd7 {[%emt 0:00:01]} 15. c5 {[%emt 0:00:11]} bxc5 {[%emt 0:00:02]} 16. bxc5 {[%emt 0:00:03]} Qg4 {[%emt 0:00:16]} 17. c6 {[%emt 0:00:21]} Rxa1 {[%emt 0:00:05]} 18. Rxa1 {[%emt 0:00:02]} Bc8 {[%emt 0:00:05]} 19. Ra7 {[%emt 0:00:16]} Bd8 {[%emt 0:00:09]} 20. Ra8 {[%emt 0:00:50]} Be7 {[%emt 0:00:09]} 21. Ra7 {[%emt 0:00:23]} Bd8 {[%emt 0:00:02]} 22. Nd2 {[%emt 0:00:01]} Ng6 {[%emt 0:00:17]} 23. Nb5 {[%emt 0:00:18]} Qh4 {[%emt 0:00:35]} 24. g3 {[%emt 0:00:05]} Qh3 {[%emt 0:00:05]} 25. f3 {[%emt 0:00:02]} h5 {[%emt 0:00:07]} 26. Qg2 {[%emt 0:00:02]} h4 {[%emt 0:00:08]} 27. Qxh3 {[%emt 0:00:03]} Bxh3 {[%emt 0:00:02]} 28. g4 {[%emt 0:00:04]} Nf4 {[%emt 0:00:25]} 29. Bxf4 {[%emt 0:00:02]} exf4 {[%emt 0:00:01]} 30. Nxc7 {[%emt 0:00:02]} Bxc7 {[%emt 0:00:01]} 31. Rxc7 {[%emt 0:00:01]} Nxg4 {[%emt 0:00:11]} 32. fxg4 {[%emt 0:00:01]} Bxg4 {[%emt 0:00:01]} 33. Rb7 {[%emt 0:00:01]} f3 {[%emt 0:00:04]} 34. Kf2 {[%emt 0:00:01]} g5 {[%emt 0:00:02]} 35. Nxf3 {[%emt 0:00:02]} Ra8 {[%emt 0:00:02]} 36. c7 {[%emt 0:00:02]} Ra2+ {[%emt 0:00:01]} 37. Be2 {[%emt 0:00:01]} Ra8 {[%emt 0:00:03]} 38. Rb8+ {[%emt 0:00:01]} 1-0

[Event "SWE-ch Blitz 2019"]
[Site "Eskilstuna"]
[Date "2019.07.11"]
[Round "1.2"]
[White "Svardh, Johan"]
[Black "Agrest, Evgenij"]
[Result "0-1"]
[ECO "B54"]
[WhiteElo "1870"]
[BlackElo "2583"]
[Annotator "ChessBase"]
[PlyCount "52"]
[EventDate "2019.07.06"]
[EventType "swiss"]
[EventCountry "SWE"]
[SourceTitle "playchess.com"]
[Source "ChessBase"]
[SourceQuality "1"]
[TimeControl "180+2"]

1. e4 {[%emt 0:00:00]} c5 {[%emt 0:00:01]} 2. Nf3 {[%emt 0:00:02]} e6 {[%emt 0:00:01]} 3. d4 {[%emt 0:00:01]} cxd4 {[%emt 0:00:01]} 4. Nxd4 {[%emt 0:00:00]} a6 {[%emt 0:00:01]} 5. Nc3 {[%emt 0:00:02]} d6 {[%emt 0:00:02]} 6. Bd3 {[%emt 0:00:09]} Nd7 {[%emt 0:00:06]} 7. O-O {[%emt 0:00:06]} g6 {[%emt 0:00:06]} 8. Be3 {[%emt 0:00:03]} Ngf6 {[%emt 0:00:06]} 9. h3 {[%emt 0:00:14]} Bg7 {[%emt 0:00:02]} 10. Qd2 {[%emt 0:00:02]} h6 {[%emt 0:00:20]} 11. Rad1 {[%emt 0:00:06]} g5 {[%emt 0:00:07]} 12. f4 {[%emt 0:00:15]} gxf4 {[%emt 0:00:03]} 13. Bf2 {[%emt 0:00:18]} Nh5 {[%emt 0:00:09]} 14. Be2 {[%emt 0:00:15]} Ndf6 {[%emt 0:00:23]} 15. Bh4 {[%emt 0:00:19]} Qb6 {[%emt 0:00:08]} 16. Kh2 {[%emt 0:00:04]} Ng3 {[%emt 0:00:04]} 17. Bxg3 {[%emt 0:00:18]} fxg3+ {[%emt 0:00:02]} 18. Kxg3 {[%emt 0:00:02]} Bd7 {[%emt 0:00:09]} 19. Kh2 {[%emt 0:00:04]} O-O-O {[%emt 0:00:07]} 20. Bf3 {[%emt 0:00:19]} Kb8 {[%emt 0:00:01]} 21. a4 {[%emt 0:00:03]} Qc7 {[%emt 0:00:03]} 22. Kg1 {[%emt 0:00:15]} h5 {[%emt 0:00:03]} 23. b4 {[%emt 0:00:10]} Rc8 {[%emt 0:00:09]} 24. Ndb5 {[%emt 0:00:18]} axb5 {[%emt 0:00:05]} 25. Nxb5 {[%emt 0:00:01]} Bxb5 {[%emt 0:00:06]} 26. axb5 {[%emt 0:00:01]} Qb6+ {[%emt 0:01:16] Qxd6+} 0-1

[Event "SWE-ch Blitz 2019"]
[Site "Eskilstuna"]
[Date "2019.07.11"]
[Round "1.3"]
[White "Lyrberg, Patrik"]
[Black "Norager, Mattias"]
[Result "1-0"]
[ECO "A10"]
[WhiteElo "2457"]
[BlackElo "1726"]
[Annotator "ChessBase"]
[PlyCount "55"]
[EventDate "2019.07.06"]
[EventType "swiss"]
[EventCountry "SWE"]
[SourceTitle "playchess.com"]
[Source "ChessBase"]
[SourceQuality "1"]
[TimeControl "180+2"]

1. Nf3 {[%emt 0:00:00]} f5 {[%emt 0:00:00]} 2. c4 {[%emt 0:00:07]} Nf6 {[%emt 0:00:03]} 3. b3 {[%emt 0:00:03]} c5 {[%emt 0:00:01]} 4. Bb2 {[%emt 0:00:02]} Nc6 {[%emt 0:00:02]} 5. d4 {[%emt 0:00:02]} cxd4 {[%emt 0:00:21]} 6. Nxd4 {[%emt 0:00:02]} d6 {[%emt 0:00:04]} 7. g3 {[%emt 0:00:36]} g6 {[%emt 0:00:08]} 8. Nxc6 {[%emt 0:00:12]} bxc6 {[%emt 0:00:02]} 9. Bxf6 {[%emt 0:00:07]} exf6 {[%emt 0:00:02]} 10. Bg2 {[%emt 0:00:01]} Bd7 {[%emt 0:00:05]} 11. O-O {[%emt 0:00:02]} Bg7 {[%emt 0:00:01]} 12. Qxd6 {[%emt 0:00:03]} Rc8 {[%emt 0:00:24]} 13. Nc3 {[%emt 0:00:03]} Kf7 {[%emt 0:00:03]} 14. Rad1 {[%emt 0:00:26]} Be6 {[%emt 0:00:17]} 15. Qxd8 {[%emt 0:00:29]} Rhxd8 {[%emt 0:00:02]} 16. Rxd8 {[%emt 0:00:06]} Rxd8 {[%emt 0:00:01]} 17. Bxc6 {[%emt 0:00:02]} Rd2 {[%emt 0:00:09]} 18. Rd1 {[%emt 0:00:03]} Rc2 {[%emt 0:00:06]} 19. Rd3 {[%emt 0:00:02]} Bf8 {[%emt 0:00:05]} 20. e3 {[%emt 0:00:09]} Bb4 {[%emt 0:00:05]} 21. Nb5 {[%emt 0:00:11]} Rxa2 {[%emt 0:00:16]} 22. Bd7 {[%emt 0:00:13]} Ke7 {[%emt 0:00:07]} 23. Bxe6 {[%emt 0:00:01]} Kxe6 {[%emt 0:00:01]} 24. Nc7+ {[%emt 0:00:01]} Kf7 {[%emt 0:00:27]} 25. Rd7+ {[%emt 0:00:02]} Kg8 {[%emt 0:00:01]} 26. Nd5 {[%emt 0:00:01]} Ra1+ {[%emt 0:00:07]} 27. Kg2 {[%emt 0:00:02]} Rd1 {[%emt 0:00:03]} 28. Nxf6+ 1-0

[Event "SWE-ch Blitz 2019"]
[Site "Eskilstuna"]
[Date "2019.07.11"]
[Round "1.4"]
[White "Dahlstedt, Anders"]
[Black "Schussler, Harry"]
[Result "0-1"]
[ECO "C10"]
[WhiteElo "1748"]
[BlackElo "2410"]
[Annotator "NA"]
[PlyCount "76"]
[EventDate "2019.07.06"]
[EventType "swiss"]
[EventCountry "SWE"]
[SourceTitle "playchess.com"]
[Source "ChessBase"]
[SourceQuality "1"]
[TimeControl "180+2"]

1. d4 {[%emt 0:00:00]} e6 {[%emt 0:00:00]} 2. e4 {[%emt 0:00:01]} d5 {[%emt 0:00:00]} 3. Nc3 {[%emt 0:00:01]} Be7 {[%emt 0:00:09]} 4. Be3 {[%emt 0:00:09]} Nf6 {[%emt 0:00:05]} 5. Qd2 {[%emt 0:00:07]} dxe4 {[%emt 0:00:05]} 6. f3 {[%emt 0:00:01]} exf3 {[%emt 0:00:03]} 7. Nxf3 {[%emt 0:00:01]} b6 {[%emt 0:00:02]} 8. O-O-O {[%emt 0:00:10]} Bb7 {[%emt 0:00:01]} 9. Bd3 {[%emt 0:00:09]} Nc6 {[%emt 0:00:05]} 10. a3 {[%emt 0:00:03]} O-O {[%emt 0:00:04]} 11. Bg5 {[%emt 0:00:03]} a6 {[%emt 0:00:12]} 12. Qf2 {[%emt 0:00:09]} Nd5 {[%emt 0:00:28]} 13. Bxh7+ {[%emt 0:00:34]} Kxh7 {[%emt 0:00:06]} 14. Qh4+ {[%emt 0:00:01]} Kg6 {[%emt 0:01:15]} 15. Ne4 {[%emt 0:00:07]} f6 {[%emt 0:00:11]} 16. Qg3 {[%emt 0:00:20]} fxg5 {[%emt 0:00:03]} 17. h4 {[%emt 0:00:17]} g4 {[%emt 0:00:04]} 18. Qxg4+ {[%emt 0:00:07]} Kh6 {[%emt 0:00:02]} 19. Qxe6+ {[%emt 0:00:19]} Bf6 {[%emt 0:00:05]} 20. g4 {[%emt 0:00:06]} Bc8 {[%emt 0:00:08]} 21. g5+ {[%emt 0:00:02]} Kh7 {[%emt 0:00:04]} 22. Nxf6+ Rxf6 {[%emt 0:00:02]} 23. Qe4+ {[%emt 0:00:30]} Bf5 {[%emt 0:00:01]} 24. Qe2 Re6 {[%emt 0:00:01]} 25. Ne5 Nxe5 {[%emt 0:00:04]} 26. Qh5+ {[%emt 0:00:14]} Kg8 {[%emt 0:00:01]} 27. dxe5 {[%emt 0:00:02]} c6 {[%emt 0:00:00]} 28. Rhf1 {[%emt 0:00:03]} g6 {[%emt 0:00:03]} 29. Qh6 {[%emt 0:00:09]} Qf8 {[%emt 0:00:01]} 30. h5 {[%emt 0:00:02]} Qxh6 {[%emt 0:00:01]} 31. gxh6 {[%emt 0:00:01]} Rxe5 {[%emt 0:00:02]} 32. hxg6 {[%emt 0:00:01]} Bxg6 {[%emt 0:00:00]} 33. Rg1 {[%emt 0:00:01]} Kh7 {[%emt 0:00:01]} 34. Rdf1 {[%emt 0:00:01]} Re2 {[%emt 0:00:01]} 35. c4 {[%emt 0:00:11]} Rc2+ {[%emt 0:00:02]} 36. Kd1 {[%emt 0:00:01]} Ne3+ {[%emt 0:00:02]} 37. Ke1 {[%emt 0:00:04]} Nxf1 {[%emt 0:00:01]} 38. Kxf1 {[%emt 0:00:02]} Rc1+ {[%emt 0:00:00]} 0-1

[Event "SWE-ch Blitz 2019"]
[Site "Eskilstuna"]
[Date "2019.07.11"]
[Round "1.5"]
[White "Andersson, Tommy"]
[Black "Falkevall, Axel"]
[Result "1-0"]
[ECO "E11"]
[WhiteElo "2390"]
[BlackElo "2067"]
[Annotator "NA"]
[PlyCount "111"]
[EventDate "2019.07.06"]
[EventType "swiss"]
[EventCountry "SWE"]
[SourceTitle "playchess.com"]
[Source "ChessBase"]
[SourceQuality "1"]
[TimeControl "180+2"]

1. d4 {[%emt 0:00:00]} Nf6 {[%emt 0:00:00]} 2. c4 {[%emt 0:00:01]} e6 {[%emt 0:00:00]} 3. Nf3 {[%emt 0:00:01]} Bb4+ {[%emt 0:00:02]} 4. Bd2 {[%emt 0:00:02]} a5 {[%emt 0:00:01]} 5. g3 {[%emt 0:00:08]} d6 {[%emt 0:00:03]} 6. Bg2 {[%emt 0:00:02]} Nbd7 {[%emt 0:00:03]} 7. O-O {[%emt 0:00:02]} e5 {[%emt 0:00:01]} 8. Nc3 {[%emt 0:00:09]} O-O {[%emt 0:00:06]} 9. a3 {[%emt 0:00:03]} Bxc3 {[%emt 0:00:03]} 10. Bxc3 {[%emt 0:00:02]} Qe7 {[%emt 0:00:19]} 11. c5 {[%emt 0:00:26]} e4 {[%emt 0:00:16]} 12. cxd6 {[%emt 0:00:03]} cxd6 {[%emt 0:00:02]} 13. Ne1 {[%emt 0:00:07]} d5 {[%emt 0:00:09]} 14. Nc2 {[%emt 0:00:08]} Nb6 {[%emt 0:00:07]} 15. Ne3 {[%emt 0:00:04]} Bd7 {[%emt 0:00:08]} 16. Qb3 {[%emt 0:00:08]} Qd6 {[%emt 0:00:09]} 17. Rac1 {[%emt 0:00:05]} Rfc8 {[%emt 0:00:10]} 18. Bd2 {[%emt 0:00:02]} a4 {[%emt 0:00:11]} 19. Qb4 {[%emt 0:00:06]} Qxb4 {[%emt 0:00:05]} 20. Bxb4 {[%emt 0:00:02]} Bb5 {[%emt 0:00:04]} 21. Bc5 {[%emt 0:00:36]} Nc4 {[%emt 0:00:10]} 22. Nxc4 {[%emt 0:00:08]} Bxc4 {[%emt 0:00:01]} 23. Rfe1 {[%emt 0:00:08]} b6 {[%emt 0:00:14]} 24. Bb4 {[%emt 0:00:20]} Ba6 {[%emt 0:00:13]} 25. Bh3 {[%emt 0:00:03]} Rxc1 {[%emt 0:00:03]} 26. Rxc1 {[%emt 0:00:01]} Bxe2 {[%emt 0:00:04]} 27. Rc7 {[%emt 0:00:12]} Bc4 {[%emt 0:00:07]} 28. Bg2 {[%emt 0:00:16]} Re8 {[%emt 0:00:10]} 29. Bd2 {[%emt 0:00:03]} h6 {[%emt 0:00:07]} 30. Bh3 {[%emt 0:00:09]} b5 {[%emt 0:00:07]} 31. Bc8 {[%emt 0:00:02]} Nh7 {[%emt 0:00:09]} 32. h4 {[%emt 0:00:02]} Nf8 {[%emt 0:00:02]} 33. Bb7 {[%emt 0:00:02]} Ne6 {[%emt 0:00:02]} 34. Rd7 {[%emt 0:00:08]} Nxd4 {[%emt 0:00:06]} 35. Bb4 {[%emt 0:00:06]} Nf3+ {[%emt 0:00:03]} 36. Kg2 {[%emt 0:00:01]} Ne5 {[%emt 0:00:08]} 37. Rd6 {[%emt 0:00:01]} Nd3 {[%emt 0:00:08]} 38. Bc3 {[%emt 0:00:01]} e3 {[%emt 0:00:03]} 39. fxe3 {[%emt 0:00:01]} Rxe3 {[%emt 0:00:01]} 40. Bxd5 {[%emt 0:00:02]} Bxd5+ {[%emt 0:00:02]} 41. Rxd5 {[%emt 0:00:01]} Re2+ {[%emt 0:00:03]} 42. Kf3 {[%emt 0:00:01]} Re8 {[%emt 0:00:07]} 43. Rxd3 Rc8 44. Rd5 {[%emt 0:00:03]} Rb8 {[%emt 0:00:01]} 45. Ke4 {[%emt 0:00:01]} f6 {[%emt 0:00:02]} 46. Kd4 {[%emt 0:00:01]} Kf7 {[%emt 0:00:01]} 47. Kc5 {[%emt 0:00:01]} Kg6 {[%emt 0:00:02]} 48. h5+ {[%emt 0:00:01]} Kf7 {[%emt 0:00:02]} 49. Kb4 {[%emt 0:00:03]} Re8 {[%emt 0:00:02]} 50. Kxb5 {[%emt 0:00:02]} Re3 {[%emt 0:00:01]} 51. g4 {[%emt 0:00:04]} Rg3 {[%emt 0:00:03]} 52. Rd4 {[%emt 0:00:02]} Ke6 {[%emt 0:00:02]} 53. Kxa4 {[%emt 0:00:04]} f5 {[%emt 0:00:04]} 54. gxf5+ {[%emt 0:00:01]} Kxf5 {[%emt 0:00:01]} 55. Kb5 {[%emt 0:00:02]} Rg5 {[%emt 0:00:04]} 56. Rd5+ {[%emt 0:00:03]} 1-0

[Event "SWE-ch Blitz 2019"]
[Site "Eskilstuna"]
[Date "2019.07.11"]
[Round "1.6"]
[White "Henricson, Max"]
[Black "Seo, Jung Min"]
[Result "0-1"]
[ECO "B22"]
[WhiteElo "1665"]
[BlackElo "2399"]
[Annotator "NA"]
[PlyCount "64"]
[EventDate "2019.07.06"]
[EventType "swiss"]
[EventCountry "SWE"]
[SourceTitle "playchess.com"]
[Source "ChessBase"]
[SourceQuality "1"]
[TimeControl "180+2"]

1. e4 {[%emt 0:00:00]} c5 {[%emt 0:00:00]} 2. c3 {[%emt 0:00:00]} d5 {[%emt 0:00:01]} 3. Bb5+ {[%emt 0:00:29]} Bd7 {[%emt 0:00:05]} 4. Qe2 {[%emt 0:00:00]} a6 {[%emt 0:00:00]} 5. Bxd7+ {[%emt 0:00:00]} Qxd7 {[%emt 0:00:00]} 6. d4 {[%emt 0:00:00]} cxd4 7. cxd4 {[%emt 0:00:00]} Nc6 {[%emt 0:00:00]} 8. Nf3 {[%emt 0:00:00]} dxe4 9. Qxe4 Nf6 {[%emt 0:00:06]} 10. Qh4 {[%emt 0:00:06]} e6 {[%emt 0:00:00]} 11. O-O {[%emt 0:00:16]} Be7 12. Rd1 {[%emt 0:00:00]} O-O {[%emt 0:00:00]} 13. Bg5 {[%emt 0:00:00]} Nd5 {[%emt 0:00:03]} 14. Bxe7 {[%emt 0:00:07]} Qxe7 {[%emt 0:00:01]} 15. Qe4 {[%emt 0:01:00]} Rfd8 16. Nc3 {[%emt 0:00:00]} h6 17. Ne5 {[%emt 0:00:00]} Nxc3 {[%emt 0:00:06]} 18. Nxc6 {[%emt 0:00:00]} Nxe4 {[%emt 0:00:02]} 19. Nxe7+ {[%emt 0:00:00]} Kf8 {[%emt 0:00:00]} 20. Re1 {[%emt 0:00:00]} Nf6 {[%emt 0:00:02]} 21. Ng6+ {[%emt 0:00:00]} fxg6 {[%emt 0:00:01]} 22. Rxe6 Rxd4 {[%emt 0:00:01]} 23. Rb6 {[%emt 0:00:02]} Rad8 {[%emt 0:00:01]} 24. g3 {[%emt 0:00:05]} Rd1+ {[%emt 0:00:01]} 25. Rxd1 {[%emt 0:00:02]} Rxd1+ {[%emt 0:00:00]} 26. Kg2 {[%emt 0:00:01]} Rd7 {[%emt 0:00:01]} 27. a4 {[%emt 0:00:08]} Kf7 {[%emt 0:00:01]} 28. b4 {[%emt 0:00:01]} Nd5 {[%emt 0:00:01]} 29. a5 {[%emt 0:00:07]} Nxb6 30. axb6 {[%emt 0:00:00]} Rd6 {[%emt 0:00:01]} 31. Kf3 {[%emt 0:00:02]} Rxb6 32. Ke4 {[%emt 0:00:00]} Rxb4+ {[%emt 0:00:02]} 0-1

[Event "SWE-ch Blitz 2019"]
[Site "Eskilstuna"]
[Date "2019.07.11"]
[Round "2.1"]
[White "Crevatin, Leo"]
[Black "Tikkanen, Hans"]
[Result "0-1"]
[ECO "D12"]
[WhiteElo "2146"]
[BlackElo "2503"]
[Annotator "ChessBase"]
[PlyCount "50"]
[EventDate "2019.07.06"]
[EventType "swiss"]
[EventCountry "SWE"]
[SourceTitle "playchess.com"]
[Source "ChessBase"]
[SourceQuality "1"]
[TimeControl "180+2"]

1. d4 {[%emt 0:00:00]} d5 {[%emt 0:00:00]} 2. c4 {[%emt 0:00:00]} c6 {[%emt 0:00:00]} 3. Nf3 {[%emt 0:00:00]} Nf6 {[%emt 0:00:01]} 4. e3 {[%emt 0:00:01]} Bf5 {[%emt 0:00:02]} 5. Nc3 {[%emt 0:00:02]} e6 {[%emt 0:00:01]} 6. Nh4 {[%emt 0:00:01]} Be4 {[%emt 0:00:04]} 7. f3 {[%emt 0:00:02]} Bg6 {[%emt 0:00:02]} 8. Qb3 {[%emt 0:00:04]} Qb6 {[%emt 0:00:05]} 9. Qxb6 {[%emt 0:00:04]} axb6 {[%emt 0:00:01]} 10. Nxg6 {[%emt 0:00:02]} hxg6 {[%emt 0:00:01]} 11. Kf2 {[%emt 0:00:08]} Bd6 {[%emt 0:00:23]} 12. g3 {[%emt 0:00:04]} g5 {[%emt 0:00:01]} 13. e4 {[%emt 0:00:19]} dxe4 {[%emt 0:00:59]} 14. fxe4 {[%emt 0:00:02]} e5 {[%emt 0:00:39]} 15. d5 {[%emt 0:00:09]} Bb4 {[%emt 0:00:14]} 16. Bd3 {[%emt 0:00:03]} g4 {[%emt 0:00:06]} 17. a3 {[%emt 0:00:22]} Nbd7 {[%emt 0:00:03]} 18. Ne2 {[%emt 0:00:33]} Nc5 {[%emt 0:00:09]} 19. Ke3 {[%emt 0:00:09]} Nb3 {[%emt 0:00:01]} 20. axb4 {[%emt 0:00:31]} Rxa1 {[%emt 0:00:02]} 21. Bc2 {[%emt 0:00:10]} Nxc1 {[%emt 0:00:15]} 22. Nxc1 {[%emt 0:00:01]} Rh3 {[%emt 0:00:07]} 23. Bb3 {[%emt 0:00:08]} Nh5 {[%emt 0:00:07]} 24. Kf2 {[%emt 0:00:07]} Nxg3 {[%emt 0:00:02]} 25. Rg1 {[%emt 0:00:01]} Nxe4+ {[%emt 0:00:01]} 0-1

[Event "SWE-ch Blitz 2019"]
[Site "Eskilstuna"]
[Date "2019.07.11"]
[Round "2.2"]
[White "Agrest, Evgenij"]
[Black "Johnson, Daniel"]
[Result "1-0"]
[ECO "A14"]
[WhiteElo "2583"]
[BlackElo "2212"]
[Annotator "ChessBase"]
[PlyCount "85"]
[EventDate "2019.07.06"]
[EventType "swiss"]
[EventCountry "SWE"]
[SourceTitle "playchess.com"]
[Source "ChessBase"]
[SourceQuality "1"]
[TimeControl "180+2"]

1. Nf3 {[%emt 0:00:00]} d5 {[%emt 0:00:00]} 2. e3 {[%emt 0:00:02]} Nf6 {[%emt 0:00:00]} 3. c4 {[%emt 0:00:01]} e6 {[%emt 0:00:02]} 4. b3 {[%emt 0:00:02]} Be7 {[%emt 0:00:02]} 5. Bb2 {[%emt 0:00:02]} O-O {[%emt 0:00:03]} 6. Nc3 {[%emt 0:00:02]} b6 {[%emt 0:00:02]} 7. g3 {[%emt 0:00:03]} Bb7 {[%emt 0:00:04]} 8. Bg2 {[%emt 0:00:01]} c5 {[%emt 0:00:01]} 9. O-O {[%emt 0:00:04]} Nc6 {[%emt 0:00:04]} 10. cxd5 {[%emt 0:00:06]} exd5 {[%emt 0:00:32]} 11. d4 {[%emt 0:00:02]} Re8 {[%emt 0:00:06]} 12. Rc1 {[%emt 0:00:02]} Bf8 {[%emt 0:00:28]} 13. dxc5 {[%emt 0:00:08]} bxc5 {[%emt 0:00:06]} 14. Na4 {[%emt 0:00:01]} Nb4 {[%emt 0:00:30]} 15. Nxc5 {[%emt 0:00:41]} Bxc5 {[%emt 0:00:02]} 16. Rxc5 {[%emt 0:00:01]} Ba6 {[%emt 0:00:15]} 17. a3 {[%emt 0:00:03]} Nd3 {[%emt 0:00:16]} 18. Bxf6 {[%emt 0:00:02]} Qxf6 {[%emt 0:00:10]} 19. Rc2 {[%emt 0:00:03]} Qe7 {[%emt 0:00:31]} 20. Qa1 {[%emt 0:00:14]} Nc5 {[%emt 0:00:07]} 21. Rd1 {[%emt 0:00:17]} Nxb3 {[%emt 0:00:09]} 22. Qc3 {[%emt 0:00:02]} Bc4 {[%emt 0:00:06]} 23. Nd2 {[%emt 0:00:14]} Nxd2 {[%emt 0:00:01]} 24. Rcxd2 {[%emt 0:00:02]} Rac8 {[%emt 0:00:01]} 25. Qa5 {[%emt 0:00:04]} Red8 {[%emt 0:00:07]} 26. h4 {[%emt 0:00:09]} g6 {[%emt 0:00:03]} 27. Rd4 {[%emt 0:00:08]} Rb8 {[%emt 0:00:02]} 28. h5 {[%emt 0:00:10]} Kg7 {[%emt 0:00:01]} 29. Qc3 {[%emt 0:00:04]} Kg8 {[%emt 0:00:03]} 30. h6 {[%emt 0:00:03]} Qf8 {[%emt 0:00:01]} 31. Rh4 {[%emt 0:00:09]} Rb3 {[%emt 0:00:01]} 32. Qd4 {[%emt 0:00:03]} Rbb8 {[%emt 0:00:04]} 33. g4 {[%emt 0:00:05]} Rb6 {[%emt 0:00:02]} 34. g5 {[%emt 0:00:02]} Rbd6 {[%emt 0:00:03]} 35. Rf4 {[%emt 0:00:03]} Be2 {[%emt 0:00:01]} 36. Rd2 {[%emt 0:00:02]} Bc4 {[%emt 0:00:01]} 37. Rf6 {[%emt 0:00:02]} R6d7 {[%emt 0:00:01]} 38. Bh3 {[%emt 0:00:05]} Rd6 {[%emt 0:00:03]} 39. Rxd6 {[%emt 0:00:03]} Rxd6 {[%emt 0:00:01]} 40. Rb2 {[%emt 0:00:02]} Rd8 {[%emt 0:00:02]} 41. Rb7 {[%emt 0:00:02]} Ba6 {[%emt 0:00:05]} 42. Rxa7 {[%emt 0:00:03]} Bc4 {[%emt 0:00:01]} 43. Be6 {[%emt 0:00:02]} 1-0

[Event "SWE-ch Blitz 2019"]
[Site "Eskilstuna"]
[Date "2019.07.11"]
[Round "2.3"]
[White "Carlstrom, Niklas"]
[Black "Lyrberg, Patrik"]
[Result "1-0"]
[ECO "B02"]
[WhiteElo "2083"]
[BlackElo "2457"]
[Annotator "ChessBase"]
[PlyCount "71"]
[EventDate "2019.07.06"]
[EventType "swiss"]
[EventCountry "SWE"]
[SourceTitle "playchess.com"]
[Source "ChessBase"]
[SourceQuality "1"]
[TimeControl "180+2"]

1. e4 {[%emt 0:00:00]} Nf6 {[%emt 0:00:00]} 2. Nc3 {[%emt 0:00:03]} d5 {[%emt 0:00:02]} 3. e5 {[%emt 0:00:01]} Ne4 {[%emt 0:00:01]} 4. Nce2 {[%emt 0:00:02]} Nc5 {[%emt 0:00:23]} 5. Nf3 {[%emt 0:00:06]} Bg4 {[%emt 0:00:03]} 6. Ng3 {[%emt 0:00:08]} e6 {[%emt 0:00:06]} 7. h3 {[%emt 0:00:05]} Bxf3 8. Qxf3 {[%emt 0:00:01]} Nc6 {[%emt 0:00:08]} 9. Bb5 {[%emt 0:00:10]} Nd7 {[%emt 0:00:01]} 10. Bxc6 bxc6 {[%emt 0:00:01]} 11. Qe2 {[%emt 0:00:19]} g6 {[%emt 0:00:12]} 12. d4 {[%emt 0:00:06]} c5 {[%emt 0:00:01]} 13. c3 {[%emt 0:00:02]} cxd4 {[%emt 0:00:02]} 14. cxd4 {[%emt 0:00:00]} c5 {[%emt 0:00:02]} 15. dxc5 {[%emt 0:00:06]} Bxc5 {[%emt 0:00:02]} 16. O-O {[%emt 0:00:07]} Rb8 {[%emt 0:00:15]} 17. Bh6 {[%emt 0:00:10]} Qh4 {[%emt 0:00:09]} 18. Be3 {[%emt 0:00:14]} d4 {[%emt 0:00:38]} 19. Bc1 {[%emt 0:00:14]} d3 {[%emt 0:00:38]} 20. Qxd3 {[%emt 0:00:05]} Nxe5 {[%emt 0:00:03]} 21. Qc3 {[%emt 0:00:19]} Bd4 {[%emt 0:00:02]} 22. Qa3 {[%emt 0:00:01]} a5 {[%emt 0:00:22]} 23. Qa4+ {[%emt 0:00:25]} Kf8 {[%emt 0:00:05]} 24. Kh1 {[%emt 0:00:26]} Kg7 {[%emt 0:00:01]} 25. Qxa5 {[%emt 0:00:07]} Ng4 {[%emt 0:00:08]} 26. Be3 {[%emt 0:00:15]} Bxe3 {[%emt 0:00:10]} 27. fxe3 {[%emt 0:00:01]} Qxg3 {[%emt 0:00:04]} 28. hxg4 {[%emt 0:00:01]} Rxb2 {[%emt 0:00:03]} 29. Qc3+ {[%emt 0:00:02]} e5 {[%emt 0:00:01]} 30. Qxb2 {[%emt 0:00:02]} h5 {[%emt 0:00:02]} 31. g5 {[%emt 0:00:03]} h4 {[%emt 0:00:02]} 32. Rf4 {[%emt 0:00:04]} h3 {[%emt 0:00:03]} 33. Qxe5+ {[%emt 0:00:01]} Kg8 {[%emt 0:00:08]} 34. Qb8+ {[%emt 0:00:11]} Kg7 {[%emt 0:00:02]} 35. Rxf7+ {[%emt 0:00:01]} Kxf7 {[%emt 0:00:02]} 36. Qxg3 {[%emt 0:00:01]} 1-0

[Event "SWE-ch Blitz 2019"]
[Site "Eskilstuna"]
[Date "2019.07.11"]
[Round "2.4"]
[White "Schussler, Harry"]
[Black "Sundin, Emanuel"]
[Result "1-0"]
[ECO "E61"]
[WhiteElo "2410"]
[BlackElo "2134"]
[Annotator "NA"]
[PlyCount "67"]
[EventDate "2019.07.06"]
[EventType "swiss"]
[EventCountry "SWE"]
[SourceTitle "playchess.com"]
[Source "ChessBase"]
[SourceQuality "1"]
[TimeControl "180+2"]

1. d4 {[%emt 0:00:00]} Nf6 {[%emt 0:00:00]} 2. Nf3 {[%emt 0:00:01]} g6 {[%emt 0:00:01]} 3. c4 {[%emt 0:00:03]} Bg7 {[%emt 0:00:01]} 4. Nc3 {[%emt 0:00:02]} O-O {[%emt 0:00:02]} 5. Bg5 {[%emt 0:00:02]} c5 {[%emt 0:00:02]} 6. d5 {[%emt 0:00:05]} h6 {[%emt 0:00:10]} 7. Bh4 {[%emt 0:00:02]} d6 {[%emt 0:00:07]} 8. e3 {[%emt 0:00:03]} e6 {[%emt 0:00:07]} 9. Be2 {[%emt 0:00:03]} g5 {[%emt 0:00:06]} 10. Bg3 {[%emt 0:00:02]} Nh5 {[%emt 0:00:18]} 11. O-O {[%emt 0:00:22]} Nxg3 12. hxg3 {[%emt 0:00:02]} e5 {[%emt 0:00:27]} 13. e4 {[%emt 0:00:03]} f5 {[%emt 0:00:12]} 14. exf5 {[%emt 0:00:03]} Bxf5 {[%emt 0:00:01]} 15. Nd2 {[%emt 0:00:02]} Nd7 {[%emt 0:00:08]} 16. Bg4 {[%emt 0:00:05]} Qe7 {[%emt 0:00:19]} 17. Bxf5 {[%emt 0:00:11]} Rxf5 {[%emt 0:00:02]} 18. Nde4 {[%emt 0:00:02]} Nf6 {[%emt 0:00:22]} 19. Qe2 {[%emt 0:00:40]} a6 {[%emt 0:00:09]} 20. g4 {[%emt 0:00:13]} Rf4 {[%emt 0:00:09]} 21. g3 {[%emt 0:00:09]} Nxe4 {[%emt 0:00:13]} 22. Nxe4 {[%emt 0:00:23]} Rf7 {[%emt 0:00:11]} 23. a4 {[%emt 0:00:07]} Raf8 {[%emt 0:00:04]} 24. Ra3 {[%emt 0:00:09]} Qd7 {[%emt 0:00:06]} 25. Kg2 {[%emt 0:00:03]} a5 {[%emt 0:00:06]} 26. Rfa1 {[%emt 0:00:10]} b6 {[%emt 0:00:01]} 27. Rb3 {[%emt 0:00:02]} Qd8 {[%emt 0:00:03]} 28. Rh1 {[%emt 0:00:04]} Re8 {[%emt 0:00:14]} 29. Rb5 {[%emt 0:00:07]} Bf8 {[%emt 0:00:04]} 30. Qe3 {[%emt 0:00:03]} Ree7 {[%emt 0:00:09]} 31. Rh5 {[%emt 0:00:07]} Rb7 {[%emt 0:00:03]} 32. Qd2 {[%emt 0:00:09]} Qe8 {[%emt 0:00:01]} 33. Qe2 {[%emt 0:00:07]} Bg7 {[%emt 0:00:02]} 34. Nxd6 {[%emt 0:00:02]} 1-0